bitfinex/quotes_ETHUSD_20250422
["timestamp","ask_amount","ask_price","bid_price","bid_amount"]
[1745352724545,7.06714539,1698.0,1697.9,5.227]
[1745352725180,5.8903222,1697.7,1697.6,5.9080564]
[1745352725384,5.8903222,1697.7,1697.6,11.1350564]
[1745352726083,5.8903222,1697.7,1697.6,14.1350564]
[1745352727378,7.06714539,1698.0,1697.7,0.7914]
[1745352727379,5.88977813,1697.9,1697.7,0.7914]
[1745352727675,5.88997526,1697.8,1697.7,6.6994564]
[1745352728474,5.88997526,1697.8,1697.7,5.9080564]
[1745352729505,5.8903222,1697.7,1697.6,9.6994564]
[1745352729706,5.8903222,1697.7,1697.6,14.1360564]
[1745352731512,5.8903222,1697.7,1697.6,8.9080564]
[1745352731815,7.06835195,1697.7,1697.6,14.1360564]
[1745352733111,7.06835195,1697.7,1697.6,8.9080564]
[1745352733313,7.06835195,1697.7,1697.6,14.1370564]
[1745352733527,5.88984387,1697.9,1697.6,14.1370564]
[1745352733689,5.88984387,1697.9,1697.8,5.9080564]
[1745352734522,5.8903222,1697.7,1697.6,14.1370564]
[1745352734818,5.8903222,1697.7,1697.6,8.9080564]
[1745352735001,5.8903222,1697.7,1697.6,14.1370564]
[1745352735380,7.06836816,1697.7,1697.6,8.229]
[1745352736019,7.06836816,1697.7,1697.6,5.229]
[1745352736583,5.8910162,1697.5,1697.4,25.3120564]
[1745352736812,5.8910162,1697.5,1697.4,30.5410564]
[1745352736982,5.89171036,1697.3,1697.2,5.9080564]
[1745352737192,5.89171036,1697.3,1697.2,11.1370564]
[1745352737193,7.07003404,1697.3,1697.2,11.1370564]
[1745352737382,7.07003404,1697.3,1697.2,5.9080564]
[1745352737587,7.07003404,1697.3,1697.2,11.1370564]
[1745352737890,5.89293313,1697.0,1696.9,5.229]
[1745352738095,5.89293313,1697.0,1696.9,8.229]
[1745352738677,5.89256169,1697.1,1696.9,8.229]
[1745352738882,5.89256169,1697.1,1697.0,5.9080564]
[1745352739194,11.78454261,1697.2,1697.0,5.9080564]
[1745352739606,5.89240469,1697.1,1697.0,5.9080564]
[1745352741295,5.89222516,1697.2,1697.0,5.9080564]
[1745352741511,5.89240469,1697.1,1696.9,5.229]
[1745352741794,5.89240469,1697.1,1697.0,5.9080564]
[1745352742403,5.89275191,1697.0,1696.9,5.229]
[1745352742623,5.89275191,1697.0,1696.9,8.229]
[1745352743839,5.89240469,1697.1,1696.9,8.229]
[1745352744141,5.89275191,1697.0,1696.9,14.1370564]
[1745352745308,7.07126757,1697.0,1696.9,14.1370564]
[1745352747429,5.89275191,1697.0,1696.9,14.1370564]
[1745352747731,11.78514089,1697.1,1696.9,14.1370564]
[1745352747929,5.89275191,1697.0,1696.9,8.229]
[1745352748237,5.89240469,1697.1,1696.9,8.229]
[1745352748422,5.89240469,1697.1,1697.0,5.9080564]
[1745352750132,5.89219831,1697.2,1697.0,5.9080564]
[1745352750574,6.19872367,1697.3,1697.0,5.9080564]
[1745352750833,6.19872367,1697.3,1697.2,5.9080564]
[1745352751012,8.0177461,1697.3,1697.2,5.9080564]
[1745352751213,7.71093019,1697.3,1697.2,5.9080564]
[1745352751918,12.29827047,1697.4,1697.2,5.9080564]
[1745352752105,6.19827047,1697.4,1697.3,5.227]
[1745352752304,5.89150063,1697.4,1697.3,5.227]
[1745352753334,11.782424,1697.5,1697.3,5.227]
[1745352753533,6.19763254,1697.6,1697.4,8.9080564]
[1745352753739,5.89083414,1697.6,1697.4,8.9080564]
[1745352757064,11.78182796,1697.6,1697.4,8.9080564]
[1745352757223,5.8910162,1697.5,1697.4,3.0]
[1745352760273,7.18682153,1697.6,1697.4,3.0]
[1745352760592,5.89083414,1697.6,1697.5,5.9080564]
[1745352760858,6.19689548,1697.8,1697.6,3.0]
[1745352761021,6.19689548,1697.8,1697.7,11.1340564]
[1745352761422,0.3067743,1697.8,1697.7,11.1340564]
[1745352761634,6.19674956,1697.8,1697.7,11.1340564]
[1745352762023,5.8897578,1697.9,1697.7,11.1340564]
[1745352763562,5.88997526,1697.8,1697.7,11.1340564]
[1745352764253,11.77967342,1697.9,1697.7,11.1340564]
[1745352764562,5.88997526,1697.8,1697.7,11.1340564]
[1745352765460,7.06794857,1697.8,1697.7,11.1340564]
[1745352767353,7.06794857,1697.8,1697.7,5.9080564]
[1745352767555,7.06794857,1697.8,1697.7,11.1340564]
[1745352768563,7.06794857,1697.8,1697.7,5.226]
[1745352768862,7.06794857,1697.8,1697.3,6.05]
[1745352768863,0.2,1696.1,1695.1,2.6]
[1745352769161,0.2,1695.7,1695.4,5.9080564]
[1745352769470,0.2,1695.6,1695.5,0.05896672]
[1745352769634,0.2,1695.6,1695.5,6.36317491]
[1745352769824,0.2,1695.6,1695.5,6.30420819]
[1745352770164,0.2,1695.7,1695.5,6.30420819]
[1745352770363,0.30675236,1698.1,1695.6,5.9080564]
[1745352770364,0.2,1695.8,1695.6,5.9080564]
[1745352770665,0.2,1695.8,1695.7,6.49886204]
[1745352770862,0.2,1695.8,1695.7,9.49886204]
[1745352771051,0.2,1695.8,1695.7,12.16286204]
[1745352771564,0.2,1695.8,1695.7,15.16286204]
[1745352771730,0.2,1695.8,1695.7,12.16286204]
[1745352772640,0.2,1695.8,1695.7,15.16286204]
[1745352772841,0.2,1695.9,1695.8,3.0]
[1745352773035,0.2,1695.9,1695.8,10.7243426]
[1745352774101,0.2,1696.2,1695.8,39.69509154]
[1745352774271,0.2,1696.2,1696.1,14.8161128]
[1745352774596,0.2,1696.2,1696.1,39.9001128]
[1745352774793,0.2,1696.4,1696.2,3.0]
[1745352775001,0.2,1696.3,1696.2,3.0]
[1745352775160,0.2,1696.3,1696.2,11.301528]
[1745352775795,6.09486123,1696.4,1696.2,3.0]
[1745352775960,0.2,1696.3,1696.2,3.0]
[1745352776255,0.2,1696.3,1696.2,6.84295027]
[1745352777096,0.2,1696.3,1696.2,7.61645027]
[1745352778498,6.09518363,1696.3,1696.2,8.667]
[1745352778673,0.2,1696.3,1696.2,8.667]
[1745352779700,6.09518363,1696.3,1696.2,8.667]
[1745352780001,6.09518363,1696.3,1696.2,3.0]
[1745352780202,0.2,1696.3,1696.2,8.667]
[1745352780410,0.2,1696.3,1696.2,8.72594902]
[1745352780566,6.09518363,1696.3,1696.2,8.72594902]
[1745352780789,6.09518363,1696.3,1696.2,8.667]
[1745352781521,0.2,1696.3,1696.2,8.667]
[1745352781691,0.2,1696.3,1696.2,8.72594909]
[1745352782102,0.7728,1696.0,1695.4,0.79936647]
[1745352782288,0.2,1695.2,1695.1,5.9080564]
[1745352782604,0.2,1695.2,1695.1,10.14291204]
[1745352785418,0.2,1695.2,1695.1,15.90405004]
[1745352786833,6.09869714,1695.3,1695.2,3.0]
[1745352790839,0.2,1695.4,1695.2,3.0]
[1745352790996,5.89678371,1695.9,1695.4,3.7735]
[1745352791200,5.89678371,1695.9,1695.7,9.0021944]
[1745352791427,5.89670936,1695.9,1695.8,3.0]
[1745352792158,13.42998279,1696.3,1695.8,3.0]
[1745352792462,5.896377,1696.0,1695.9,8.67]
[1745352792615,5.89607768,1696.1,1695.9,8.67]
[1745352793342,5.89622641,1696.0,1695.9,5.67]
[1745352793538,5.95517566,1696.0,1695.9,5.67]
[1745352794036,5.89622641,1696.0,1695.9,5.67]
[1745352797536,11.79145629,1696.2,1695.9,5.67]
[1745352797706,5.89567829,1696.2,1695.9,11.6721944]
[1745352797902,5.89599604,1696.1,1695.9,12.91875384]
[1745352798313,5.89599604,1696.1,1695.9,11.6721944]
[1745352800650,11.79149505,1696.2,1695.9,11.6721944]
[1745352800821,5.89567829,1696.2,1695.9,11.6721944]
[1745352801025,13.12800762,1696.3,1696.0,3.0]
[1745352801249,13.12800762,1696.3,1696.0,4.52617608]
[1745352801250,6.40743782,1696.3,1696.0,4.52617608]
[1745352801919,6.1,1696.3,1696.1,6.0021944]
[1745352802120,5.89467391,1696.5,1696.1,6.7955944]
[1745352802465,5.89467391,1696.5,1696.2,0.05894903]
[1745352802619,12.15506455,1696.6,1696.3,5.698]
[1745352802819,6.26066927,1696.6,1696.3,5.698]
[1745352803024,6.20172002,1696.6,1696.3,11.7001944]
[1745352803252,5.89562633,1696.2,1695.2,2.26031944]
[1745352803449,5.8973027,1695.7,1695.3,6.0021944]
[1745352803654,5.8973027,1695.7,1695.3,7.25155384]
[1745352803840,5.8973027,1695.7,1695.4,3.0]
[1745352804036,5.8973027,1695.7,1695.6,3.0]
[1745352807171,5.89692714,1695.8,1695.6,3.7707]
[1745352807375,5.89692714,1695.8,1695.7,5.92373302]
[1745352808383,5.89726956,1695.7,1695.6,3.0]
[1745352810539,13.41831736,1695.6,1694.9,0.2936744]
[1745352810781,5.90040122,1694.8,1694.7,0.3979811]
[1745352811089,5.97416551,1694.8,1694.7,6.0969811]
[1745352811913,5.90040122,1694.8,1694.7,6.0969811]
[1745352820119,5.9000531,1694.9,1694.8,3.0]
[1745352823907,5.89994954,1695.0,1694.8,3.0]
[1745352824105,5.9000531,1694.9,1694.8,3.0]
[1745352824738,5.89994954,1695.0,1694.8,3.0]
[1745352826130,5.9000531,1694.9,1694.8,3.0]
[1745352830461,5.9000531,1694.9,1694.7,6.8676811]
[1745352830462,6.69800122,1694.8,1694.7,1e-08]
[1745352831735,6.77177535,1694.8,1694.7,1e-08]
[1745352831961,7.32177535,1694.8,1694.7,1e-08]
[1745352832672,13.42177535,1694.8,1694.7,1e-08]
[1745352832832,15.44190254,1694.8,1694.7,1e-08]
[1745352833262,21.44970506,1694.8,1694.7,1e-08]
[1745352833475,6.69904585,1694.5,1694.4,5.684]
[1745352833776,6.69904585,1694.5,1693.9,19.443]
[1745352833777,5.90318772,1694.0,1693.9,19.443]
[1745352833938,5.90318772,1694.0,1693.9,28.127]
[1745352836881,7.87649042,1694.0,1693.9,19.443]
[1745352837096,5.90318772,1694.0,1693.9,25.128]
[1745352839699,12.79588772,1694.0,1693.9,25.129]
[1745352843300,12.00318772,1694.0,1693.9,25.129]
[1745352843496,12.07698252,1694.0,1693.9,25.129]
[1745352844599,5.97698252,1694.0,1693.9,25.129]
[1745352844799,5.90318772,1694.0,1693.9,25.129]
[1745352844964,5.90318772,1694.0,1693.9,28.129]
[1745352845369,5.90261644,1694.2,1693.9,31.61556131]
[1745352845605,5.90235971,1694.3,1694.0,8.9671817]
[1745352845786,5.90254435,1694.2,1694.1,0.7991]
[1745352845987,5.90235971,1694.3,1694.1,0.7991]
[1745352846192,11.80479231,1694.3,1694.1,0.7991]
[1745352847507,5.90249085,1694.2,1694.1,0.7991]
[1745352848409,5.90283926,1694.1,1694.0,3.0]
[1745352849212,5.90318772,1694.0,1693.9,25.9281]
[1745352850515,5.90318772,1694.0,1693.9,25.129]
[1745352851974,5.90283926,1694.1,1693.9,25.129]
[1745352852174,5.90318772,1694.0,1693.9,25.129]
[1745352854096,7.08379042,1694.0,1693.9,25.129]
[1745352854413,5.90318772,1694.0,1693.9,25.129]
[1745352855221,5.97697651,1694.0,1693.9,5.686]
[1745352855514,5.90388475,1693.8,1693.7,9.01056826]
[1745352855710,5.90388475,1693.8,1693.7,14.69656826]
[1745352855877,5.90388475,1693.8,1693.7,8.686]
[1745352856215,5.90388475,1693.8,1693.7,5.686]
[1745352856510,5.90388475,1693.8,1693.0,0.3979811]
[1745352856511,0.30784464,1693.1,1693.0,0.3979811]
[1745352856686,0.30784464,1693.1,1693.0,9.40854936]
[1745352857011,0.30784464,1693.1,1693.0,11.04017536]
[1745352857597,0.30784464,1693.1,1693.0,11.81817536]
[1745352858319,0.30784464,1693.1,1693.0,16.14014536]
[1745352858518,0.30784464,1693.1,1693.0,11.81817536]
[1745352858683,0.30784464,1693.1,1693.0,15.08464536]
[1745352859811,0.30784464,1693.1,1693.0,16.26598026]
[1745352860114,0.30784464,1693.1,1693.0,15.08464536]
[1745352860887,0.30784464,1693.1,1693.0,16.26598026]
[1745352861440,0.14961329,1693.1,1693.0,22.86598026]
[1745352861585,5.90438621,1693.7,1693.2,3.778]
[1745352861789,5.90438621,1693.7,1693.4,9.01056826]
[1745352862500,5.90470554,1693.6,1693.4,9.01056826]
[1745352863122,11.80891641,1693.7,1693.4,9.01056826]
[1745352863307,5.90479618,1693.6,1693.4,3.0]
[1745352863507,11.80891795,1693.7,1693.4,3.778]
[1745352863709,11.80891209,1693.7,1693.4,3.778]
[1745352864012,5.90458836,1693.6,1693.4,6.71188]
[1745352864211,5.90458836,1693.6,1693.4,12.72244826]
[1745352864392,5.90406824,1693.8,1693.4,12.72244826]
[1745352864722,5.90406824,1693.8,1693.6,6.01056826]
[1745352865030,5.90406824,1693.8,1693.7,5.726]
[1745352865708,6.21030082,1694.3,1693.7,10.67765683]
[1745352865709,0.7574,1694.2,1693.7,10.67765683]
[1745352865912,5.90232376,1694.3,1694.1,6.01056826]
[1745352866129,5.90232376,1694.3,1694.2,5.726]
[1745352869150,5.90249085,1694.2,1693.4,2.93388]
[1745352869359,5.90388475,1693.8,1693.7,11.66452706]
[1745352869649,5.90388475,1693.8,1693.7,14.66452706]
[1745352870015,5.90388475,1693.8,1693.7,11.66452706]
[1745352871445,5.90388475,1693.8,1693.7,5.726]
[1745352871609,5.90628664,1693.2,1693.0,6.1239811]
[1745352871810,5.90632567,1693.1,1693.0,6.1239811]
[1745352872235,5.90632567,1693.1,1693.0,9.1239811]
[1745352872930,5.90632567,1693.1,1693.0,6.1239811]
[1745352874858,5.90628664,1693.2,1693.0,6.1239811]
[1745352875151,5.90626902,1693.2,1693.0,6.1239811]
[1745352875928,5.97924657,1693.4,1693.0,12.82946343]
[1745352876253,5.90610782,1693.2,1693.0,12.82946343]
[1745352877526,11.81178445,1693.3,1693.0,12.82946343]
[1745352877926,5.90584427,1693.3,1693.0,12.82946343]
[1745352878557,5.90584427,1693.3,1693.1,3.0]
[1745352879347,5.90564239,1693.3,1693.1,3.0]
[1745352884044,11.81151679,1693.3,1693.1,3.0]
[1745352884250,5.90564239,1693.3,1693.1,3.0]
[1745352884753,11.81102715,1693.4,1693.1,3.0]
[1745352885253,5.90565581,1693.3,1693.1,3.0]
[1745352886335,12.63116524,1693.2,1693.0,0.3979811]
[1745352886661,5.90614455,1693.2,1693.1,5.727]
[1745352888371,5.90575629,1693.3,1693.1,5.727]
[1745352889567,5.90597684,1693.2,1693.1,5.727]
[1745352889784,5.90575629,1693.3,1693.1,5.727]
[1745352889951,11.81164994,1693.3,1693.1,5.727]
[1745352890280,5.90575629,1693.3,1693.1,5.727]
[1745352890682,11.81165661,1693.3,1693.1,5.727]
[1745352891059,5.90575629,1693.3,1693.1,5.727]
[1745352891680,5.9049458,1693.5,1693.2,9.01505422]
[1745352891849,12.00476077,1693.6,1693.2,9.01505422]
[1745352892049,17.90961395,1693.6,1693.2,9.45554907]
[1745352892251,12.00476077,1693.6,1693.3,0.8199]
[1745352892486,5.90434126,1693.7,1693.4,6.01505422]
[1745352892687,5.90405571,1693.8,1693.5,8.603]
[1745352893162,5.90424324,1693.7,1693.5,8.603]
[1745352893362,5.90424324,1693.7,1693.5,14.5428]
[1745352893583,11.80873002,1693.7,1693.5,14.5428]
[1745352893796,5.90424324,1693.7,1693.5,14.5428]
[1745352893977,11.80876354,1693.7,1693.5,14.5428]
[1745352894182,5.90424324,1693.7,1693.5,14.5428]
[1745352895388,5.90424324,1693.7,1693.5,11.5428]
[1745352896392,5.90424324,1693.7,1693.5,5.9398]
[1745352896693,5.90493061,1693.5,1693.4,19.462]
[1745352902107,5.90439078,1693.7,1693.4,19.462]
[1745352902395,5.90439078,1693.7,1693.5,5.9398]
[1745352902763,11.80887128,1693.7,1693.5,5.9398]
[1745352902964,5.90439078,1693.7,1693.5,5.9398]
[1745352903262,11.8089102,1693.7,1693.5,5.9398]
[1745352903486,17.90822682,1693.8,1693.5,6.7728]
[1745352903684,6.1,1693.8,1693.6,3.0]
[1745352903895,11.80756496,1693.9,1693.7,11.5428]
[1745352904065,5.90388475,1693.8,1693.7,11.5428]
[1745352904265,5.90458195,1693.6,1693.5,5.602]
[1745352904466,7.24010527,1693.6,1693.5,5.602]
[1745352904873,13.34010527,1693.6,1693.5,5.602]
[1745352905074,14.07459348,1693.6,1693.5,5.602]
[1745352908509,5.90357944,1693.9,1693.6,3.0]
[1745352908682,17.90687897,1694.0,1693.8,5.9398]
[1745352908883,5.90353621,1693.9,1693.8,5.9398]
[1745352909211,17.90681431,1694.0,1693.8,5.9398]
[1745352909377,12.00334397,1694.0,1693.8,5.9398]
[1745352909576,12.0771377,1694.0,1693.8,5.9398]
[1745352910078,5.90302428,1694.1,1693.9,5.602]
[1745352911309,5.97641523,1694.2,1694.0,5.9398]
[1745352911613,5.90262749,1694.2,1694.0,5.9398]
[1745352911807,5.97610648,1694.3,1694.0,5.9398]
[1745352912182,5.90250393,1694.2,1693.9,5.602]
[1745352912510,5.90238764,1694.3,1694.1,5.9398]
[1745352912806,6.71505604,1694.6,1694.2,3.0]
[1745352913006,6.7888238,1694.6,1694.3,11.5418]
[1745352913376,12.61643829,1694.6,1694.3,11.5418]
[1745352913888,12.6164209,1694.6,1694.3,11.5418]
[1745352914121,6.71505604,1694.6,1694.3,11.5418]
[1745352914412,6.7888238,1694.6,1694.3,11.5418]
[1745352914785,5.9750238,1694.6,1694.3,11.5418]
[1745352914998,6.78808664,1694.8,1694.5,5.9398]
[1745352915212,6.78808664,1694.8,1694.7,5.9398]
[1745352915213,0.07376777,1694.8,1694.7,5.9398]
[1745352915383,5.90075067,1694.7,1694.5,6.00735347]
[1745352915717,5.97438494,1694.8,1694.5,6.00735347]
[1745352916007,11.87506543,1694.8,1694.5,6.00735347]
[1745352916508,5.97438494,1694.8,1694.5,6.00735347]
[1745352918076,6.71395471,1694.9,1694.5,6.00735347]
[1745352918077,11.99948607,1695.1,1694.7,6.00735347]
[1745352918274,5.89916267,1695.2,1694.8,6.3546]
[1745352918475,5.89903993,1695.2,1695.1,6.00735347]
[1745352918777,5.89970501,1695.0,1694.8,5.601]
[1745352919205,5.89939023,1695.1,1694.8,5.601]
[1745352919615,5.9729911,1695.2,1694.8,5.601]
[1745352919821,5.89935698,1695.1,1694.8,5.601]
[1745352920326,5.89977701,1695.0,1694.8,5.601]
[1745352920823,5.89977701,1695.0,1694.8,8.601]
[1745352920824,5.9000531,1694.9,1694.8,8.601]
[1745352920988,0.07374776,1695.0,1694.8,8.601]
[1745352921182,0.07375211,1695.1,1694.8,14.60835347]
[1745352921419,11.8728752,1695.1,1694.8,14.60835347]
[1745352921612,5.89997128,1695.0,1694.8,14.60835347]
[1745352923997,7.15467169,1695.1,1694.8,14.60835347]
[1745352924197,5.9000531,1694.9,1694.8,14.60835347]
[1745352924641,5.9000531,1694.9,1694.8,8.601]
[1745352925291,5.90123143,1694.6,1694.5,5.575]
[1745352925625,6.68910087,1694.5,1694.2,5.575]
[1745352925793,5.90214247,1694.3,1694.2,5.575]
[1745352926000,5.97592085,1694.3,1694.2,5.575]
[1745352927206,12.07592085,1694.3,1694.2,5.575]
[1745352927406,6.72359085,1694.2,1693.9,5.575]
[1745352927613,5.90318772,1694.0,1693.9,5.575]
[1745352930316,12.00318772,1694.0,1693.9,5.575]
[1745352931611,12.07698662,1694.0,1693.9,5.575]
[1745352932139,12.89808662,1694.0,1693.9,5.575]
[1745352932318,14.70439587,1694.0,1693.9,5.575]
[1745352932950,5.90423333,1693.7,1693.6,28.024]
[1745352933119,5.90393538,1693.8,1693.7,3.0]
[1745352934416,5.90423333,1693.7,1693.6,28.024]
[1745352934620,5.90423333,1693.7,1693.6,25.024]
[1745352935623,5.97773971,1693.8,1693.6,25.8467]
[1745352935811,5.90393538,1693.8,1693.7,5.93956573]
[1745352937835,5.90423333,1693.7,1693.6,25.024]
[1745352938243,6.79913828,1693.7,1693.6,25.024]
[1745352938829,12.89913828,1693.7,1693.6,25.024]
[1745352939142,12.82533333,1693.7,1693.6,25.024]
[1745352939743,14.6982602,1693.7,1693.6,5.576]
[1745352941111,12.00423333,1693.7,1693.6,5.576]
[1745352941317,12.07804153,1693.7,1693.6,5.576]
[1745352946549,5.90527931,1693.4,1693.3,11.51656573]
[1745352949245,5.90527931,1693.4,1693.3,5.577]
[1745352949943,5.90527931,1693.4,1693.3,11.51656573]
[1745352950446,5.90527931,1693.4,1693.3,5.577]
[1745352950654,8.46680868,1693.4,1693.3,5.577]
[1745352950861,8.54063148,1693.4,1693.3,5.577]
[1745352953679,6.76170211,1693.4,1693.3,5.577]
[1745352955689,5.97910211,1693.4,1693.3,5.577]
[1745352955850,5.9790999,1693.4,1693.3,5.577]
[1745352956660,5.90527931,1693.4,1693.3,5.577]
[1745352958700,5.97909376,1693.4,1693.3,5.577]
[1745352958869,8.51712282,1693.4,1693.3,5.577]
[1745352959989,5.90632567,1693.1,1693.0,6.7785152]
[1745352961499,5.90632567,1693.1,1693.0,0.3979811]
[1745352961704,6.73925447,1693.1,1693.0,0.3979811]
[1745352962208,12.08015447,1693.1,1693.0,0.3979811]
[1745352962359,12.00632567,1693.1,1693.0,1.2033811]
[1745352964803,6.1,1693.1,1693.0,4.2033811]
[1745352965013,12.00632567,1693.1,1693.0,4.2033811]
[1745352965168,6.1,1693.1,1693.0,5.80860404]
[1745352965505,12.00632567,1693.1,1693.0,5.80860404]
[1745352967104,5.90632567,1693.1,1693.0,5.80860404]
[1745352967310,5.90632567,1693.1,1693.0,4.2033811]
[1745352968609,5.90632567,1693.1,1693.0,3.3979811]
[1745352969823,5.90632567,1693.1,1693.0,0.3979811]
[1745352972972,5.90632567,1693.1,1692.9,5.476]
[1745352972973,6.66577454,1693.0,1692.9,5.476]
[1745352973223,6.73961799,1693.0,1692.9,5.476]
[1745352973379,5.9073724,1692.8,1692.7,19.463]
[1745352973581,5.90772139,1692.7,1692.6,5.477]
[1745352973880,12.00772139,1692.7,1692.6,5.477]
[1745352974082,12.76682139,1692.7,1692.6,5.477]
[1745352975683,5.90911776,1692.3,1692.2,9.74496573]
[1745352975983,5.9098162,1692.1,1692.0,19.465]
[1745352976185,5.98369518,1692.1,1692.0,19.465]
[1745352977718,5.91016548,1692.0,1691.9,5.478]
[1745352977875,5.91121357,1691.7,1691.6,5.478]
[1745352978076,5.98510971,1691.7,1691.6,5.478]
[1745352978988,5.91121357,1691.7,1691.6,5.478]
[1745352980015,5.98510555,1691.7,1691.6,5.478]
[1745352980217,8.54381812,1691.7,1691.6,5.478]
[1745352980838,5.91226203,1691.4,1691.3,0.3979811]
[1745352981034,6.74527601,1691.4,1691.3,0.3979811]
[1745352982044,5.98617601,1691.4,1691.3,0.3979811]
[1745352982204,14.87822257,1691.7,1691.4,3.0]
[1745352982205,5.98568445,1691.6,1691.4,3.0]
[1745352982405,5.91178108,1691.6,1691.5,5.469]
[1745352982855,6.21959304,1691.7,1691.5,11.40856573]
[1745352983023,5.9848707,1691.8,1691.6,3.8054]
[1745352983338,0.30818987,1691.9,1691.7,5.93956573]
[1745352983619,0.30818987,1691.9,1691.6,5.32679657]
[1745352983620,5.91086416,1691.8,1691.6,3.8054]
[1745352983767,5.91074493,1691.9,1691.7,5.93956573]
[1745352984370,5.91052709,1691.9,1691.7,5.93956573]
[1745352984659,6.21769251,1692.2,1691.9,0.8054]
[1745352984660,5.90967895,1692.2,1691.9,0.8054]
[1745352984863,5.90967895,1692.2,1692.0,5.469]
[1745352985161,5.9098162,1692.1,1692.0,5.469]
[1745352986260,4.8998162,1692.1,1692.0,5.469]
[1745352988337,5.98314241,1692.3,1692.0,12.16614182]
[1745352988537,5.98314241,1692.3,1692.1,3.0]
[1745352988751,5.90893254,1692.4,1692.1,3.0]
[1745352988952,5.90856131,1692.5,1692.2,6.83359924]
[1745352989174,5.90898034,1692.4,1692.2,6.83359924]
[1745352989537,5.90898034,1692.4,1692.2,3.8073]
[1745352989538,5.90911776,1692.3,1692.2,3.8073]
[1745352989739,5.90911776,1692.3,1692.2,3.0]
[1745352990439,5.90966824,1692.2,1692.1,3.0]
[1745352991138,5.90966824,1692.2,1692.0,11.49529924]
[1745352991139,5.9098162,1692.1,1692.0,11.49529924]
[1745352991434,5.9098162,1692.1,1692.0,14.49529924]
[1745352991640,5.9098162,1692.1,1692.0,8.469]
[1745352991985,7.09915176,1692.1,1692.0,8.469]
[1745352992144,5.90966824,1692.2,1692.0,8.469]
[1745352993282,5.9098162,1692.1,1692.0,8.469]
[1745352993471,5.90966824,1692.2,1692.0,8.469]
[1745352993780,5.90971416,1692.2,1692.0,8.469]
[1745352994183,5.9098162,1692.1,1692.0,8.469]
[1745352995354,7.16564106,1692.1,1692.0,8.469]
[1745352996473,7.16564106,1692.1,1692.0,5.469]
[1745352998178,5.9105148,1691.9,1691.8,3.0]
[1745352998384,5.98439902,1691.9,1691.8,3.0]
[1745352998542,5.9105148,1691.9,1691.8,3.0]
[1745353001724,5.91086416,1691.8,1691.7,8.91507344]
[1745353001886,5.91086416,1691.8,1691.3,0.3979811]
[1745353001887,5.91156301,1691.6,1691.4,5.469]
[1745353002082,5.98580959,1691.5,1691.4,5.469]
[1745353003533,5.98523454,1691.7,1691.5,3.0]
[1745353003842,11.82287705,1691.7,1691.5,3.0]
[1745353004002,5.91133343,1691.7,1691.5,3.0]
[1745353004400,5.91156301,1691.6,1691.5,3.0]
[1745353004909,6.71276301,1691.6,1691.5,3.0]
[1745353005104,5.91156301,1691.6,1691.5,3.0]
[1745353005441,5.9119125,1691.5,1691.4,8.469]
[1745353007133,12.0110955,1691.8,1691.5,3.7954]
[1745353007339,5.91123612,1691.7,1691.5,3.7954]
[1745353008319,5.91156301,1691.6,1691.5,3.7954]
[1745353009535,5.91156301,1691.6,1691.5,3.0]
[1745353010346,6.1,1691.8,1691.6,0.7954]
[1745353010510,5.91026868,1692.0,1691.8,0.7954]
[1745353010717,5.91026868,1692.0,1691.9,5.47]
[1745353011422,5.90995668,1692.1,1692.0,3.0]
[1745353011753,5.90961189,1692.2,1692.0,9.02629924]
[1745353011916,6.1,1692.4,1692.1,0.7954]
[1745353011917,5.90888875,1692.4,1692.1,0.7954]
[1745353012242,6.29013265,1692.6,1692.3,3.0]
[1745353012403,5.90818846,1692.6,1692.4,6.2564]
[1745353012603,11.81653097,1692.6,1692.4,6.70009188]
[1745353012803,5.90818846,1692.6,1692.4,6.70009188]
[1745353013016,5.90841949,1692.5,1692.4,9.70009188]
[1745353013612,5.90841949,1692.5,1692.4,8.90469188]
[1745353013932,7.24405383,1692.5,1692.4,5.461]
[1745353018320,5.98227303,1692.5,1692.4,5.461]
[1745353022648,5.90946696,1692.2,1692.1,5.89461707]
[1745353022849,5.90946696,1692.2,1692.1,5.46]
[1745353027759,5.98333945,1692.2,1692.1,5.46]
[1745353029344,5.9105148,1691.9,1691.8,8.461]
[1745353031221,5.9105148,1691.9,1691.8,8.89657923]
[1745353031722,5.9103331,1692.0,1691.8,13.15084871]
[1745353031922,5.90994181,1692.1,1691.9,5.95011552]
[1745353032222,5.91016548,1692.0,1691.9,8.95011552]
[1745353035262,5.90994181,1692.1,1691.9,8.95011552]
[1745353035556,11.81934761,1692.2,1691.9,8.95011552]
[1745353036071,12.00930629,1692.3,1692.1,5.95011552]
[1745353036430,12.00930629,1692.3,1692.2,5.461]
[1745353037167,6.1,1692.3,1692.2,8.461]
[1745353037464,11.81800789,1692.4,1692.2,9.2828]
[1745353037660,5.90893611,1692.4,1692.3,5.95011552]
[1745353040280,5.90858661,1692.5,1692.3,5.95011552]
[1745353040498,5.90786237,1692.7,1692.4,3.59501155]
[1745353040635,12.00753026,1692.8,1692.5,6.71231552]
[1745353040834,5.90775005,1692.7,1692.6,5.46]
[1745353041138,17.91519512,1692.8,1692.6,5.46]
[1745353041338,17.91517198,1692.8,1692.6,5.46]
[1745353041569,12.00753026,1692.8,1692.6,5.46]
[1745353041753,17.91516368,1692.8,1692.6,5.90026278]
[1745353041937,17.91522654,1692.8,1692.6,5.90026278]
[1745353042138,12.00753026,1692.8,1692.6,5.90026278]
[1745353042338,17.91523054,1692.8,1692.6,5.90026278]
[1745353042736,12.00753026,1692.8,1692.6,5.90026278]
[1745353043065,12.00753026,1692.8,1692.6,8.90026278]
[1745353043066,5.90772139,1692.7,1692.6,8.90026278]
[1745353044334,6.2148514,1693.0,1692.7,0.7622]
[1745353044548,5.90646442,1693.1,1693.0,3.0]
[1745353045070,5.90646442,1693.1,1693.0,8.338]
[1745353045642,5.90632567,1693.1,1693.0,8.338]
[1745353045941,5.98015378,1693.1,1693.0,8.338]
[1745353046859,5.90632567,1693.1,1693.0,8.338]
[1745353049867,5.90614171,1693.2,1693.0,9.1002]
[1745353050206,5.90614171,1693.2,1693.1,5.95011552]
[1745353051051,5.90579413,1693.3,1693.1,5.95011552]